Cogmind - Beta 16.1 @@@ ROGUE MODE // 2026.04.03 @ 01:18:44 Player: War__Prophet Result: Destroyed by H-77 Assassin with High-powered Shotgun Performance ------------- Evolutions (7) 3500 Regions Visited (12) 2400 Robots Destroyed (42) 210 Value Destroyed (980) 980 Prototype IDs (4) 80 Alien Tech Used (0) 0 Bonus (1262) 1262 TOTAL SCORE: 8432 Bonus ------- Pacifist 200 Follower Combat Kills 362 Entered Garrisons 200 Entered DSFs 500 Cogmind --------- Core Integrity 0/1300 Matter 159/300 Energy 73/100 System Corruption 3% Temperature Cool (0) Movement Core (50) Location -3/Armory Parts ------- > --- POWER (4) -------- (None) > --- PROPULSION (8) --- (None) > --- UTILITY (6) ------ Advanced Signal Interpreter Advanced Melee Analysis Suite Advanced Melee Analysis Suite Advanced Melee Analysis Suite > --- WEAPON (3) ------- (None) > --- INVENTORY (5) ---- Advanced Cryofiber Web Improved Trap Scanner Precision Energy Filter Experimental Weapon Shielding Experimental Weapon Shielding Peak State ------------ > --- POWER ------------ Light Ion Engine Fusion Compressor > --- PROPULSION ------- Field Propulsion Drive Field Propulsion Drive Field Propulsion Drive Field Propulsion Drive Field Propulsion Drive Field Propulsion Drive Field Propulsion Drive > --- UTILITY ---------- Advanced Heat Sink Advanced Signal Interpreter Improved Target Analyzer Microactuators Hardened Light Armor Plating Graphene Brace > --- WEAPON ----------- Great Maul Dual-blade Saw Dual-blade Saw > --- INVENTORY -------- Advanced Cryofiber Web Improved Trap Scanner Precision Energy Filter Experimental Weapon Shielding Experimental Weapon Shielding [Rating: 96] Favorites ----------- Power Light Fission Core Engine Angular Momentum Engine Power Core Light Fission Core Propulsion Field Propulsion Drive Treads Medium Treads Leg Flexi-carbon Leg Wheel Compact Wheel Flight Unit Field Propulsion Drive Utility Experimental Weapon Shielding Device Microactuators Processor Visual Processing Unit Protection Experimental Weapon Shielding Weapon Powered Hammer Energy Cannon Beam Cannon Ballistic Gun Enhanced Coil Gun Launcher Gamma Bomb Array Impact Weapon Powered Hammer Slashing Weapon Dual-blade Saw Build | -11 -10 -9 -8 -7 -7 -7 -6 -6 -5 -4 -3 -3 ------- Run | Yrd Mat Mat Mat Fac DSF Gar Fac Ext Fac Fac Res Arm Slots Evolved 14 | . . 2 2 2 . . 2 . 2 2 2 . Power 3 | . . . 1 . . . 1 . . . 1 . Propulsion 6 | . . 2 . 1 . . 1 . . 1 1 . Utility 4 | . . . 1 . . . . . 2 1 . . Weapon 1 | . . . . 1 . . . . . . . . Parts Attached 85 | 2 . 8 5 3 3 . 13 5 21 9 3 13 Power 10 | . . 1 1 . . . 4 . 3 1 . . Engine 5 | . . 1 1 . . . 2 . . 1 . . Core 5 | . . . . . . . 2 . 3 . . . Reactor . | . . . . . . . . . . . . . Propulsion 35 | 2 . 3 1 1 2 . 3 4 10 6 1 2 Treads 5 | . . . . . . . 2 3 . . . . Leg 4 | . . . . . 2 . 1 . 1 . . . Wheel 2 | 2 . . . . . . . . . . . . Hover . | . . . . . . . . . . . . . Flight 24 | . . 3 1 1 . . . 1 9 6 1 2 Utility 20 | . . 2 2 1 . . 4 1 5 2 . 3 Device 9 | . . 1 2 1 . . 1 . 2 2 . . Storage . | . . . . . . . . . . . . . Processor 7 | . . 1 . . . . 1 . 2 . . 3 Hackware . | . . . . . . . . . . . . . Protection 4 | . . . . . . . 2 1 1 . . . Artifact . | . . . . . . . . . . . . . Weapon 20 | . . 2 1 1 1 . 2 . 3 . 2 8 Energy Gun . | . . . . . . . . . . . . . Energy Cannon 4 | . . 2 1 1 . . . . . . . . Ballistic Gun 4 | . . . . . . . . . . . . 4 Ballistic Cannon . | . . . . . . . . . . . . . Launcher 4 | . . . . . . . . . 1 . . 3 Special Weapon . | . . . . . . . . . . . . . Impact Weapon 4 | . . . . . 1 . 2 . 1 . . . Slashing Weapon 4 | . . . . . . . . . 1 . 2 1 Piercing Weapon . | . . . . . . . . . . . . . Special Melee Weapon . | . . . . . . . . . . . . . Unidentified Prototypes 4 | . . . . . . . 1 . 2 . . 1 Corrupted Parts 3 | . . . . . . . 2 1 . . . . System Corruption 14 | . . . . . . . 13 1 . . . . Parts Lost 35 | . . . 1 . 3 . 1 3 4 . 10 13 Power 6 | . . . . . 1 . 1 1 1 . 2 . Propulsion 14 | . . . . . 2 . . 1 2 . 5 4 Utility 5 | . . . . . . . . 1 . . 2 2 Weapon 10 | . . . 1 . . . . . 1 . 1 7 Highest Loss Streak 7 | . . . 1 . 2 . 1 2 2 . 5 7 To Critical Strikes . | . . . . . . . . . . . . . Average Backups 4 | . . 1 4 3 3 5 4 5 4 4 5 5 Power . | . . . . . . . . . . . . . Propulsion . | . . . 1 1 . . . . . . . . Utility 2 | . . . . 1 . 1 2 3 3 4 5 5 Weapon . | . . . 2 1 2 4 . 1 . . . . Tool/Special . | . . . . . . . . . . . . . Unused Backups 15 | . . 2 1 . 5 . 1 2 . 1 . 3 Power . | . . . . . . . . . . . . . Propulsion 4 | . . 2 1 . 1 . . . . . . . Utility 6 | . . . . . . . . 2 . 1 . 3 Weapon 5 | . . . . . 4 . 1 . . . . . Tool/Special . | . . . . . . . . . . . . . Average Slot Usage (%) 52 | . 28 38 73 88 32 . 38 81 40 68 67 27 Engine 3 | . . 3 10 15 3 . 4 6 . 1 2 . Core 4 | . . . . . . . 2 12 4 5 3 . Treads 5 | . . . . . . . 4 22 . . . . Wheel 2 | . 28 15 . . . . . . . . . . Flight 9 | . . 8 28 38 11 . . . 16 25 24 4 Device 4 | . . . 16 15 6 . 1 2 2 11 13 3 Processor 4 | . . . . . . . 1 6 4 10 9 13 Protection 4 | . . . . . . . 2 10 6 7 2 . Energy Cannon 2 | . . 10 17 19 6 . . . . . . . Impact Weapon 8 | . . . . . . . 17 20 3 5 3 . Peak Build Rating 96 | 2 2 10 12 17 17 1 47 50 68 81 96 75 Average Rating 33 | 1 2 3 10 14 5 1 26 47 35 73 77 43 On Entrance 22 | . 2 2 8 12 17 1 1 47 2 68 76 50 Avg Prop Armor Cover (%) 13 | . . . . . . . . . 13 . . 12 Naked Turns 147 | . . . . . 29 66 31 6 15 . . . Heaviest Build 41 | . . 10 15 19 19 . 41 41 33 21 29 24 Greatest Support 116 | 26 26 26 16 20 36 3 56 116 39 48 49 30 Greatest Overweight (x) 2 | . . . . . . . . . 1 . . 2 Average Overweight (x) . | . . . . . . . . . . . . . Largest Inventory Capacity 5 | 5 5 5 5 5 5 5 5 5 5 5 5 5 Average Capacity 5 | 5 5 5 5 5 5 5 5 5 5 5 5 5 Most Carried 5 | . . 5 5 4 5 5 5 5 5 5 5 5 Average Carried 4 | . . 1 4 3 3 5 3 4 4 4 5 5 Final Capacity 5 | 5 5 5 5 5 5 5 5 5 5 5 5 5 Final Carried 5 | . . 5 5 3 5 5 5 5 5 5 5 5 Class Distribution -------------------- 42% | Mutant 32% | Scavenger-Mutant 18% | Sprinter 3% | Scavenger-Sprinter 3% | Gladiator Dominant Class ---------------- Mutant | -10/Materials Mutant | -9/Materials Scavenger-Mutant | -8/Materials Scavenger-Mutant | -7/Factory Mutant | -7/DSF Mutant | -7/Garrison Mutant | -6/Factory Scavenger-Mutant | -6/Extension Sprinter | -5/Factory Sprinter | -4/Factory Sprinter | -3/Research Mutant | -3/Armory Resources | -11 -10 -9 -8 -7 -7 -7 -6 -6 -5 -4 -3 -3 ----------- Run | Yrd Mat Mat Mat Fac DSF Gar Fac Ext Fac Fac Res Arm Matter Collected 1240 | 72 34 16 107 . 7 . 288 114 128 6 432 36 Remotely . | . . . . . . . . . . . . . Salvage Created 1906 | . . 203 124 . . . 388 374 150 12 604 51 Parts 54 | . . 9 7 . . . 10 8 8 3 6 3 Haulers Intercepted 1 | . . . . . . . 1 . . . . . Recyclers Shooed 2 | . . 1 . . . . . 1 . . . . Parts Field Recycled . | . . . . . . . . . . . . . Retrieved Matter . | . . . . . . . . . . . . . Parts Self-Destructed . | . . . . . . . . . . . . . Prevented . | . . . . . . . . . . . . . Parts Restored . | . . . . . . . . . . . . . Kills | -11 -10 -9 -8 -7 -7 -7 -6 -6 -5 -4 -3 -3 ------- Run | Yrd Mat Mat Mat Fac DSF Gar Fac Ext Fac Fac Res Arm Combat Hostiles Destroyed 21 | . . 3 4 . . . 2 4 5 . 1 2 Melee 10 | . . . . . . . 1 3 5 . 1 . Guns 2 | . . . . . . . . . . . . 2 Cannons 7 | . . 3 4 . . . . . . . . . Classes Destroyed 12 | . . 2 2 . . . 4 1 . . 2 1 Worker 6 | . . . . . . . 3 . . 1 2 . Builder 1 | . . . . . . . . . . . 1 . Tunneler 2 | . . . . . . . . . . . 2 . Hauler 1 | . . . . . . . 1 . . . . . Recycler 7 | . . 2 . . . . 1 1 . . 3 . Operator 1 | . . . 1 . . . . . . . . . Watcher 3 | . . . . . . . 1 . . . 2 . Swarmer 11 | . . 3 3 . . . . . 4 . . 1 Saboteur 1 | . . . . . . . . . . . . 1 Grunt 4 | . . . . . . . . 3 1 . . . Sentry 3 | . . . 1 . . . 1 1 . . . . Programmer 2 | . . . . . . . 1 . . . 1 . Best Kill Streak 10 | . . 3 3 . . . 4 1 3 1 10 2 Combat Bots Only 3 | . . 3 3 . . . 1 1 3 . 1 2 Max Kills in Single Turn 1 | . . 1 1 . . . 1 1 1 1 1 1 Gunslinging . | . . . . . . . . . . . . . Exploded . | . . . . . . . . . . . . . Melee 1 | . . . . . . . 1 1 1 . 1 . Uniques/NPCs Destroyed . | . . . . . . . . . . . . . Combat | -11 -10 -9 -8 -7 -7 -7 -6 -6 -5 -4 -3 -3 -------- Run | Yrd Mat Mat Mat Fac DSF Gar Fac Ext Fac Fac Res Arm Hostile Shots Fired 753 | . 8 37 51 . 84 12 46 98 162 . 80 175 Missed 271 | . 1 13 23 . 34 3 21 15 66 . 43 52 Hits 482 | . 7 24 28 . 50 9 25 83 96 . 37 123 Projectile 482 | . 7 24 28 . 50 9 25 83 96 . 37 123 AOE 2 | . . . . . . . . . 2 . . . Critical Strikes 16 | . . 1 1 . . . 1 1 2 . 2 8 Actively Blocked 6 | . . . . . . . . 1 1 . 2 2 Part Disruptions 1 | . . . . . . . . . 1 . . . Damage Taken 8148 | 1 74 213 189 . 785 136 209 1312 1776 . 722 2731 Core 3415 | 1 54 107 38 . 425 136 84 277 985 . 70 1238 Absorbed by Shields 189 | . . . 70 . 31 . . 88 . . . . Redirected to Shielding 255 | . . . . . . . . 148 107 . . . Core Remaining (%) 65 | 99 78 73 93 . . 19 . 57 1 100 . . Volleys Fired 40 | . . 12 17 . 3 . . . 1 . . 7 Largest 3 | . . 2 2 . 3 . . . 1 . . 2 Hottest 180 | . . 120 120 . 180 . . . 46 . . 60 Shots Fired 81 | . . 24 33 . 9 . . . 1 . . 14 Gun 14 | . . . . . . . . . . . . 14 Cannon 66 | . . 24 33 . 9 . . . . . . . Launcher 1 | . . . . . . . . . 1 . . . Special . | . . . . . . . . . . . . . Kinetic 14 | . . . . . . . . . . . . 14 Thermal 66 | . . 24 33 . 9 . . . . . . . Explosive . | . . . . . . . . . . . . . Electromagnetic 1 | . . . . . . . . . 1 . . . Robot Hit Streak 8 | . . 4 8 . 4 . . . 1 . . 4 Robot Miss Streak 4 | . . 4 4 . 2 . . . . . . 2 Penetration Max 1 | . . . . . . . . . . . . 1 Secondary Targets . | . . . . . . . . . . . . . Shots Hit Robots 106 | . . 12 19 . 5 . 18 10 9 1 22 10 Core Hits 35 | . . 5 6 . 1 . 3 3 5 1 6 5 Critical Kills 5 | . . . . . . . 1 1 1 1 1 . Critical Parts Destroyed 11 | . . . . . . . 2 2 . . 6 1 Critical Strikes 23 | . . . . . . . 4 3 1 1 13 1 Destroy 1 | . . . . . . . . . . . . 1 Smash 16 | . . . . . . . 4 3 1 1 7 . Sever 6 | . . . . . . . . . . . 6 . Melee Attacks 100 | . . . . . . . 25 16 23 1 29 6 Impact 71 | . . . . . . . 25 16 9 1 20 . Slashing 29 | . . . . . . . . . 14 . 9 6 Piercing . | . . . . . . . . . . . . . Sneak Attacks 15 | . . . . . . . 5 1 . 1 8 . Combat Hostiles . | . . . . . . . . . . . . . Follow-up Attacks 15 | . . . . . . . 7 1 . . 7 . Damage Inflicted 4441 | 3 . 236 317 . 86 . 964 488 416 111 1381 439 Guns 433 | . . . . . . . . . . . . 433 Cannons 632 | . . 229 317 . 86 . . . . . . . Explosions 31 | . . . . . . . . . 31 . . . Melee 3325 | . . . . . . . 964 488 381 111 1381 . Ramming 20 | 3 . 7 . . . . . . 4 . . 6 Kinetic 433 | . . . . . . . . . . . . 433 Thermal 632 | . . 229 317 . 86 . . . . . . . Explosive . | . . . . . . . . . . . . . Electromagnetic 31 | . . . . . . . . . 31 . . . Impact 2996 | . . . . . . . 964 488 223 111 1210 . Slashing 329 | . . . . . . . . . 158 . 171 . Piercing . | . . . . . . . . . . . . . Highest Corruption 15 | . . . . . . . 14 15 6 . 3 3 Average Corruption 10 | . . . . . . . 13 14 3 . 2 3 Corruption Purged . | . . . . . . . . . . . . . Corruption Blocked . | . . . . . . . . . . . . . Effects 38 | . . . . . . . 5 24 4 . 1 4 Message Errors 11 | . . . . . . . 2 7 2 . . . Matter Fused 11 | . . . . . . . 1 6 1 . 1 2 Heat Flow Errors 3 | . . . . . . . . 3 . . . . Energy Discharges 3 | . . . . . . . 1 1 1 . . . Parts Rejected 1 | . . . . . . . . 1 . . . . Parts Fused 2 | . . . . . . . . 2 . . . . Data Loss (minor) 3 | . . . . . . . . 1 . . . 2 Data Loss (major) 2 | . . . . . . . 1 1 . . . . Alerts 2 | . . . . . . . . 2 . . . . Overload Shots . | . . . . . . . . . . . . . Overflow Damage 1367 | . . . . . . . 355 144 22 . 846 . Projectiles . | . . . . . . . . . . . . . Explosions . | . . . . . . . . . . . . . Melee 1367 | . . . . . . . 355 144 22 . 846 . Knockbacks 9 | . . . . . . . 4 2 1 . 2 . Impact 9 | . . . . . . . 4 2 1 . 2 . Kinetic . | . . . . . . . . . . . . . Secondary . | . . . . . . . . . . . . . Self-Inflicted Damage 6 | 1 . 2 . . . . . . 1 . . 2 Shots . | . . . . . . . . . . . . . Rammed 10 | 1 . 4 . . . . . . 2 . . 3 Targets Rammed 11 | 1 . 4 . . . . . . 3 . . 3 Kicked 1 | . . . . . . . . . 1 . . . Crushed . | . . . . . . . . . . . . . Highest Temperature 447 | . . 303 190 1 145 . . 447 247 1 10 . Average Temperature 107 | . . 143 101 1 68 . . 159 70 1 3 . Received Heat Transfer 972 | . 42 . 12 . . . 60 393 102 . 18 345 Effects 5 | . . 1 . . . . . 4 . . . . Shutdowns 3 | . . . . . . . . 3 . . . . Energy Bleed 1 | . . 1 . . . . . . . . . . Interference 1 | . . . . . . . . 1 . . . . Siege Activations . | . . . . . . . . . . . . . Martial Activations . | . . . . . . . . . . . . . Shielding Activations . | . . . . . . . . . . . . . Robots Disrupted . | . . . . . . . . . . . . . Combat Hostiles . | . . . . . . . . . . . . . Robots Corrupted 11 | . . . . . . . 5 2 . . 4 . Combat Hostiles 2 | . . . . . . . 1 1 . . . . Parts Fried 21 | . . . . . . . 5 3 . . 13 . Impact Corruptions 46 | . . . . . . . 13 6 1 . 26 . Robots Melted . | . . . . . . . . . . . . . Combat Hostiles . | . . . . . . . . . . . . . Parts Melted 1 | . . . 1 . . . . . . . . . Heat Transferred 1332 | . . 481 666 . 185 . . . . . . . Parts Sabotaged . | . . . . . . . . . . . . . Parts Stolen . | . . . . . . . . . . . . . Parts Stripped . | . . . . . . . . . . . . . Power Chain Reactions . | . . . . . . . . . . . . . Alert | -11 -10 -9 -8 -7 -7 -7 -6 -6 -5 -4 -3 -3 ------- Run | Yrd Mat Mat Mat Fac DSF Gar Fac Ext Fac Fac Res Arm Maximum Alert Level 1 | . . . . . . . . 1 . . . 1 Low Security (%) 92 | 100 100 100 100 100 100 100 100 71 100 100 100 88 Level 1 7 | . . . . . . . . 28 . . . 11 Level 2 . | . . . . . . . . . . . . . Level 3 . | . . . . . . . . . . . . . Level 4 . | . . . . . . . . . . . . . Level 5 . | . . . . . . . . . . . . . High Security . | . . . . . . . . . . . . . Max Security . | . . . . . . . . . . . . . Peak Influence 247 | . . 71 65 34 23 131 68 247 141 68 53 232 Initial 68 | . . . 13 29 23 6 68 . 56 68 22 7 Average 43 | . . 23 27 31 12 25 20 106 26 57 22 52 Influence Increases 1768 | . . 98 120 5 15 125 109 517 314 5 163 297 Destroy 0b10 Robot/C 640 | . . 60 80 . . . 40 300 100 . 20 40 Destroy 0b10 Robot/NC 110 | . . 10 5 . . . 30 10 . 5 50 . Destroy Leader 108 | . . 10 20 . . . 24 30 . . 14 10 Allied During Kill 96 | . . . . . . . . 96 . . . . Successful Hack 30 | . . . . 5 . . . 14 4 . . 7 Disable Machine 45 | . . . . . . . . 45 . . . . Anti-Garrison Action 50 | . . . . . . 50 . . . . . . Destroy Structure 14 | . . 3 . . . . . 7 . . 4 . Partial Spotted 30 | . . . . . . . 15 . 15 . . . Lose Combat Pursuer 645 | . . 15 15 . 15 75 . 15 195 . 75 240 Influence Decreases 1586 | . . 65 88 36 41 2 238 404 288 103 191 130 Entered New Map 295 | . . . 20 36 11 2 63 2 59 73 21 8 Time Decay 869 | . . 65 58 . . . 170 232 194 30 80 40 Lost Part 282 | . . . 10 . 30 . 5 30 35 . 90 82 Lost Ally 140 | . . . . . . . . 140 . . . . Squads Dispatched 10 | . 1 . 2 . . . 1 3 1 . 1 1 Investigation 3 | . 1 . . . . . . 2 . . . . Extermination 3 | . . . . . . . 1 . 1 . 1 . Reinforcement 4 | . . . 2 . . . . 1 . . . 1 Assault . | . . . . . . . . . . . . . Garrison . | . . . . . . . . . . . . . Intercept . | . . . . . . . . . . . . . Searches Triggered . | . . . . . . . . . . . . . Construction Impeded 1 | . . . . . . . . 1 . . . . Haulers Reinforced . | . . . . . . . . . . . . . Active Scanning Responses . | . . . . . . . . . . . . . Cargo Convoy Interrupts . | . . . . . . . . . . . . . Stealth | -11 -10 -9 -8 -7 -7 -7 -6 -6 -5 -4 -3 -3 --------- Run | Yrd Mat Mat Mat Fac DSF Gar Fac Ext Fac Fac Res Arm Distress Signals 9 | . . . . . . . . 4 2 . 2 1 Communications Jammed . | . . . . . . . . . . . . . Distress Signals . | . . . . . . . . . . . . . Times Spotted 140 | . 7 8 16 . 4 8 5 17 26 . 16 33 Peak Tracking Total 24 | . 4 5 7 . 3 8 2 5 9 1 9 24 Tactical Retreats 18 | . . 1 1 . 1 1 . 1 6 . 3 4 Traps | -11 -10 -9 -8 -7 -7 -7 -6 -6 -5 -4 -3 -3 ------- Run | Yrd Mat Mat Mat Fac DSF Gar Fac Ext Fac Fac Res Arm Traps Triggered 3 | . . . . . . . . 1 1 . 1 . Indirectly . | . . . . . . . . . . . . . Trap Hack Attempts . | . . . . . . . . . . . . . Triggered . | . . . . . . . . . . . . . Disarmed . | . . . . . . . . . . . . . Reprogrammed . | . . . . . . . . . . . . . Reused . | . . . . . . . . . . . . . Traps Extracted . | . . . . . . . . . . . . . Installed . | . . . . . . . . . . . . . Triggered . | . . . . . . . . . . . . . Machines | -11 -10 -9 -8 -7 -7 -7 -6 -6 -5 -4 -3 -3 ---------- Run | Yrd Mat Mat Mat Fac DSF Gar Fac Ext Fac Fac Res Arm Machines Disabled 3 | . . . . . . . . 3 . . . . Max in Single Turn 1 | . . . . . . . . 1 . . . . Energy Cycler 1 | . . . . . . . . 1 . . . . Machines Repaired . | . . . . . . . . . . . . . Machines Dismantled . | . . . . . . . . . . . . . Machines Sabotaged . | . . . . . . . . . . . . . Overloaded Fab Kills . | . . . . . . . . . . . . . Hacking | -11 -10 -9 -8 -7 -7 -7 -6 -6 -5 -4 -3 -3 --------- Run | Yrd Mat Mat Mat Fac DSF Gar Fac Ext Fac Fac Res Arm Machines Accessed 9 | . . . . 1 . 1 . 4 2 . . 1 Terminals 9 | . . . . 1 . 1 . 4 2 . . 1 Fabricators . | . . . . . . . . . . . . . Repair Stations . | . . . . . . . . . . . . . Recycling Units . | . . . . . . . . . . . . . Scanalyzers . | . . . . . . . . . . . . . Garrison Access . | . . . . . . . . . . . . . Total Hacks 17 | . . . . 1 . 3 . 10 2 . . 1 Successful 7 | . . . . 1 . . . 3 2 . . 1 Failed 10 | . . . . . . 3 . 7 . . . . Catastrophic 5 | . . . . . . 3 . 2 . . . . Database Lockouts . | . . . . . . . . . . . . . Manual 1 | . . . . . . . . . 1 . . . Terminals 17 | . . . . 1 . 3 . 10 2 . . 1 Fabricators . | . . . . . . . . . . . . . Repair Stations . | . . . . . . . . . . . . . Recycling Units . | . . . . . . . . . . . . . Scanalyzers . | . . . . . . . . . . . . . Garrison Access . | . . . . . . . . . . . . . Terminal Hacks 6 | . . . . 1 . . . 3 1 . . 1 Open Door 4 | . . . . . . . . 3 . . . 1 Open DSF 2 | . . . . 1 . . . . 1 . . . Fabricator Hacks . | . . . . . . . . . . . . . Repair Station Hacks . | . . . . . . . . . . . . . Recycling Unit Hacks . | . . . . . . . . . . . . . Scanalyzer . | . . . . . . . . . . . . . Garrison Access Hacks . | . . . . . . . . . . . . . Unauthorized Hacks 1 | . . . . . . . . . 1 . . . Terminals 1 | . . . . . . . . . 1 . . . Skim 1 | . . . . . . . . . 1 . . . Fabricators . | . . . . . . . . . . . . . Repair Stations . | . . . . . . . . . . . . . Recycling Units . | . . . . . . . . . . . . . Scanalyzers . | . . . . . . . . . . . . . Garrison Access . | . . . . . . . . . . . . . Data Cores Recovered 1 | . . . 1 . . . . . . . . . Used . | . . . . . . . . . . . . . Hacking Detections 5 | . . . . . . 1 . 3 1 . . . Full Trace Events 2 | . . . . . . 1 . 1 . . . . Feedback Events . | . . . . . . . . . . . . . Feedback Blocked . | . . . . . . . . . . . . . Robot Schematics Acquired . | . . . . . . . . . . . . . Robots Built . | . . . . . . . . . . . . . Authchips . | . . . . . . . . . . . . . Time . | . . . . . . . . . . . . . Total Robot Build Rating . | . . . . . . . . . . . . . Part Schematics Acquired . | . . . . . . . . . . . . . Parts Built . | . . . . . . . . . . . . . Authchips . | . . . . . . . . . . . . . Time . | . . . . . . . . . . . . . Total Part Build Rating . | . . . . . . . . . . . . . Part Studies Acquired . | . . . . . . . . . . . . . Parts Repaired . | . . . . . . . . . . . . . Time . | . . . . . . . . . . . . . Parts Recycled . | . . . . . . . . . . . . . Recycled Matter . | . . . . . . . . . . . . . Retrieved Matter . | . . . . . . . . . . . . . Retrieved Components . | . . . . . . . . . . . . . Parts Scanalyzed . | . . . . . . . . . . . . . Part Schematics Acquired . | . . . . . . . . . . . . . Parts Damaged . | . . . . . . . . . . . . . Bothacking | -11 -10 -9 -8 -7 -7 -7 -6 -6 -5 -4 -3 -3 ------------ Run | Yrd Mat Mat Mat Fac DSF Gar Fac Ext Fac Fac Res Arm Used RIF Installer . | . . . . . . . . . . . . . Robots Hacked . | . . . . . . . . . . . . . Non-combat . | . . . . . . . . . . . . . Combat . | . . . . . . . . . . . . . Robot Hacks Applied . | . . . . . . . . . . . . . Relay Couplers Released . | . . . . . . . . . . . . . Fabnet Peak Effective % . | . . . . . . . . . . . . . Robots Rewired 6 | . . . . . . . . 6 . . . . Allies Hacked . | . . . . . . . . . . . . . Hacks Repelled . | . . . . . . . . . . . . . Allies | -11 -10 -9 -8 -7 -7 -7 -6 -6 -5 -4 -3 -3 -------- Run | Yrd Mat Mat Mat Fac DSF Gar Fac Ext Fac Fac Res Arm Total Allies 10 | . . . . . . . . 10 . . . . Largest Group 6 | . . . . . . . . 6 . . . . Highest-Rated Group 179 | . . . . . . . . 179 . . . . Highest-Rated Ally 39 | . . . . . . . . 39 . . . . Total Orders . | . . . . . . . . . . . . . Ally Attacks 76 | . . . . . . . . 76 . . . . Total Damage 1548 | . . . . . . . . 1548 . . . . Kills 15 | . . . . . . . . 15 . . . . Allies Corrupted . | . . . . . . . . . . . . . Allies Melted 1 | . . . . . . . . 1 . . . . Intel | -11 -10 -9 -8 -7 -7 -7 -6 -6 -5 -4 -3 -3 ------- Run | Yrd Mat Mat Mat Fac DSF Gar Fac Ext Fac Fac Res Arm Active Infowar (turns) 708 | . . . . 3 18 . 121 566 . . . . Optics 687 | . . . . . . . 121 566 . . . . Terrain 21 | . . . . 3 18 . . . . . . . Robot Analysis Total . | . . . . . . . . . . . . . Derelict Logs Recovered . | . . . . . . . . . . . . . Drone Launches . | . . . . . . . . . . . . . Drone Recoveries . | . . . . . . . . . . . . . Exploration | -11 -10 -9 -8 -7 -7 -7 -6 -6 -5 -4 -3 -3 ------------- Run | Yrd Mat Mat Mat Fac DSF Gar Fac Ext Fac Fac Res Arm Turns Passed 2511 | 61 62 224 134 12 95 66 412 572 464 69 189 151 Spaces Moved 2927 | 65 69 244 200 28 86 131 287 293 848 155 375 146 Core 307 | 3 . . . . 46 131 61 12 33 . . 21 Treads 349 | . . . . . . . 68 281 . . . . Legs 258 | . . . . . 32 . 158 . 68 . . . Wheels 264 | 62 69 133 . . . . . . . . . . Hover . | . . . . . . . . . . . . . Flight 1749 | . . 111 200 28 8 . . . 747 155 375 125 Fastest Speed 26 | 50 90 34 31 28 28 50 50 50 26 29 27 37 Average Speed 62 | 88 90 64 33 28 74 50 114 155 38 31 32 47 Slowest Speed 160 | 100 90 90 34 28 120 50 160 160 130 39 42 150 Overloaded Moves . | . . . . . . . . . . . . . Propulsion Burnouts . | . . . . . . . . . . . . . Robots Hopped 28 | . . 1 4 . . . . . 22 . . 1 Potential Cave-ins . | . . . . . . . . . . . . . Cave-ins Triggered . | . . . . . . . . . . . . . Exploration Rate (%) 22 | 3 22 25 23 1 72 36 6 42 26 5 16 17 Regions Visited 12 Branch Regions 2 Pre-discovered Areas . | . . . . . . . . . . . . . Known Exits Taken 4 | . . . . 1 . . . . 1 1 1 . Unknown Exits Taken 6 | 1 1 1 1 . . . 1 1 . . . . Scrap Searched . | . . . . . . . . . . . . . Spaces Dug 2 | . . . . . . . . . . . 2 . Terrain Destroyed 2 | . . . . . . . . . . . 2 . Melee 2 | . . . . . . . . . . . 2 . Projectile . | . . . . . . . . . . . . . AOE . | . . . . . . . . . . . . . Terrain Rammed . | . . . . . . . . . . . . . Walls Destroyed . | . . . . . . . . . . . . . Machines Disabled . | . . . . . . . . . . . . . Actions | -11 -10 -9 -8 -7 -7 -7 -6 -6 -5 -4 -3 -3 --------- Run | Yrd Mat Mat Mat Fac DSF Gar Fac Ext Fac Fac Res Arm Total 3329 | 67 68 285 228 30 112 130 336 381 916 171 406 199 Wait 82 | . . 2 8 . 6 . 5 6 30 . 4 21 Move 2866 | 65 68 241 191 27 85 130 286 292 809 154 374 144 Hop 23 | . . 1 4 . . . . . 17 . . 1 Pick Up 32 | . . 10 1 . 8 . 7 2 2 2 . . Fast Attach 75 | 2 . 5 4 1 3 . 8 6 19 8 6 13 Attach 17 | . . 3 1 2 . . 7 . 3 1 . . Detach 10 | . . 3 1 . . . 3 . 3 . . . Swap . | . . . . . . . . . . . . . Drop 34 | . . 4 1 . 7 . 3 3 7 5 . 4 Fire 40 | . . 12 17 . 3 . . . 1 . . 7 Melee 83 | . . . . . . . 17 14 23 1 22 6 Ram 8 | . . 4 . . . . . . 1 . . 3 Kick 1 | . . . . . . . . . 1 . . . Crush . | . . . . . . . . . . . . . Escape Stasis . | . . . . . . . . . . . . . Rewire 58 | . . . . . . . . 58 . . . . Trap . | . . . . . . . . . . . . . Miscellaneous . | . . . . . . . . . . . . . Route ------- -11/Scrapyard -10/Materials -9/Materials -8/Materials -7/Factory -7/DSF -7/Garrison -6/Factory -6/Extension -5/Factory -4/Factory -3/Research -3/Armory History --------- Turn | Location | Event 12 | -11/Scrapyard | Discovered new exit (range 14) 62 | -11/Scrapyard | Entered Materials 63 | -10/Materials | Met a group of wandering Federalists 114 | -10/Materials | Discovered new exit (range 15) 124 | -10/Materials | Entered another Materials area 124 | -9/Materials | Evolved 2 slots: Propulsion x2 291 | -9/Materials | Discovered new exit (range 15) 348 | -9/Materials | Entered another Materials area 348 | -8/Materials | Evolved 2 slots: Power x1, Utility x1 478 | -8/Materials | Discovered new exit (range 14) 482 | -8/Materials | Entered Factory 482 | -7/Factory | Evolved 2 slots: Propulsion x1, Weapon x1 488 | -7/Factory | Identified exit to DSF 494 | -7/Factory | Entered DSF 512 | -7/DSF | Released all parts (12) 554 | -7/DSF | Additional patrols routed to DSF 580 | -7/DSF | Discovered new exit (range 15) 581 | -7/DSF | Core integrity fell below 50% 589 | -7/DSF | Entered Garrison 649 | -7/Garrison | Discovered new exit (range 12) 654 | -7/Garrison | Core integrity fell below 20% 655 | -7/Garrison | Entered Factory 655 | -6/Factory | Evolved 2 slots: Power x1, Propulsion x1 814 | -6/Factory | Build established: Mutant 934 | -6/Factory | System corruption reached 10% 1040 | -6/Factory | Discovered new exit (range 17) 1067 | -6/Factory | Entered Extension 1148 | -6/Extension | Rescued a captive Derelict 1149 | -6/Extension | Rescued a captive Derelict 1202 | -6/Extension | Rescued a captive Derelict 1204 | -6/Extension | Rescued a captive Derelict 1322 | -6/Extension | Build established: Scavenger-Mutant 1455 | -6/Extension | Lost 3 allies 1467 | -6/Extension | Energy Cycler disabled 1467 | -6/Extension | Rescued a captive Derelict 1469 | -6/Extension | Rescued a captive Derelict 1469 | -6/Extension | Rescued a captive Derelict 1469 | -6/Extension | Rescued a captive Derelict 1469 | -6/Extension | Rescued a captive Derelict 1471 | -6/Extension | Rescued a captive Derelict 1472 | -6/Extension | Rescued a captive Derelict 1575 | -6/Extension | Spotted B-75 Beast 1617 | -6/Extension | Spotted B-75 Beast 1621 | -6/Extension | Discovered new exit (range 17) 1633 | -6/Extension | Released all parts (12) 1639 | -6/Extension | Entered Factory 1639 | -5/Factory | Evolved 2 slots: Utility x2 1647 | -5/Factory | Lost 5 allies 1778 | -5/Factory | Core integrity fell below 50% 2038 | -5/Factory | Core integrity fell below 20% 2090 | -5/Factory | Spotted B-75 Beast 2097 | -5/Factory | Discovered new exit (range 11) 2100 | -5/Factory | Identified exit to Factory 2103 | -5/Factory | Entered another Factory area 2103 | -4/Factory | Evolved 2 slots: Propulsion x1, Utility x1 2167 | -4/Factory | Discovered new exit (range 15) 2171 | -4/Factory | Identified exit to Research 2172 | -4/Factory | Entered Research 2172 | -3/Research | Evolved 2 slots: Power x1, Propulsion x1 2258 | -3/Research | Spotted B-86 Titan 2293 | -3/Research | Lost 3 parts (2n1u) 2332 | -3/Research | Spotted B-86 Titan 2355 | -3/Research | Discovered new exit (range 15) 2360 | -3/Research | Identified exit to Armory 2361 | -3/Research | Entered Armory 2401 | -3/Armory | Lost 7 parts (1p3n2u1w) 2440 | -3/Armory | Found Gamma Bomb Array 2443 | -3/Armory | Found Gamma Bomb Array 2454 | -3/Armory | Lost 4 parts (1n1u2w) 2465 | -3/Armory | Found Gamma Bomb Array 2480 | -3/Armory | Core integrity fell below 50% 2508 | -3/Armory | Core integrity fell below 20% 2512 | -3/Armory | Destroyed by H-77 Assassin with High-powered Shotgun Last Messages --------------- 02501_ S-43 Plague destroyed. 02504_ Slug penetrates G-67 Veteran. 02504_ G-67 Veteran suffers critical hit (Destroy). 02504_ Destroyed Flexi-carbon Leg. 02507_ S-43 Plague destroyed. 02508_ Acquired 34 matter. 02508_ Enh. Coil Gun destroyed. 02509_ System corrupted: Matter fused (-10). 02509_ M-36 Artificer repairs G-67 Veteran. 02509_ Enh. Coil Gun destroyed. 02511_ M-36 Artificer repairs G-67 Veteran Adv. Heat Sink. 02511_ Slammed into G-67 Veteran. 02511_ C-30 ARC bursts open, deploying its payload. 02511_ G-73 Enforcer unfolds itself. 02511_ G-67 Veteran unfolds itself. 02512_ Slug penetrates G-67 Veteran. 02512_ Penetrated by Slug. Map ----- +----------------------------------------------------+ | ?????????????????????????????????????????????????? | | ?????????????????????????????????????????????????? | | ?????????????????????????????????????????????????? | | ?????????????????????????????????????????????????? | | ?????????????????????????????????????????????????? | | ?????????????????????????????????????????????????? | | ?????????????????????????????????????????????????? | | ?????????????????????????????????????????????????? | | ?????????????????????????????????????????????????? | | ?????????????????????????????????????????????????? | | ?????????????????????????????????????????????????? | | ?????????????????????????????????????????????????? | | ?????????????????????????????????????????????????? | | ?????????????????????????????????????????????????? | | ?????????????????????????????????????????????????? | | ?????????????????????????????????????????????????? | | ?????????????????????????????????????????????????? | | ?????????????????????????????????????????????????? | | ???????????????????????????????######????????????? | | ??????????######################! #??????????""? | | ??????? g T #??????????""? | | ??????? gg "" #?????????? ? | | ??????????????###### #h ####### #??????????/#? | | ???????????????????# #gg#?????## ##?????????? #? | | ???????????????????# ?# h#####??# ############ #? | | ???????????????????# ?# g@s%=#??# ## | | ???????????????????#??#xgm* #??# | | ??????????????????????# g=[[#??# | | ??????????????????????# [[#??# | | ??????????????????????########??# | | ????????????????????????????????# | | ????????????????????????????????# | | ????????????????????????????????# | | ????????????????????????????????#+#####+####+##/## | | ????????????????????????????????????????# | | ????????????????????????????????????????# ]]]]] | | ????????????????????????????????????????# ]]]]]] | | ????????????????????????????????????????# | | ????????????????????????????????????????########## | | ?????????????????????????????????????????????????? | | ?????????????????????????????????????????????????? | | ?????????????????????????????????????????????????? | | ?????????????????????????????????????????????????? | | ?????????????????????????????????????????????????? | | ?????????????????????????????????????????????????? | | ?????????????????????????????????????????????????? | | ?????????????????????????????????????????????????? | | ?????????????????????????????????????????????????? | | ?????????????????????????????????????????????????? | | | +----------------------------------------------------+ Best States ------------- Heat Dissipation 65 Coolant Potential 50 Energy Generation 41 Energy Capacity 410 Matter Stores 300 Matter Capacity 300 Sight Range 18 Terrain Scan Range 16 Terrain Scan Density 10 Armor Coverage 150 Weapon Shielding 90 Melee Speed Boost 20 Evasion (%) 64 Melee Accuracy 24 Target Analysis 6 Recoil Reduction 5 Item Schematics ----------------- None Robot Schematics ------------------ None Fabricated ------------ Nothing Repaired ---------- Nothing Studied --------- None Alien Tech Used ----------------- None Achievements -------------- None Challenges ------------ None Game ------ Seed PiercingVortexReconfigurator Manual? 0 Play Time 00:39:44 Cumulative 61.9 hours Start 2026.04.02 @ 22:40:27 End 2026.04.03 @ 01:18:44 Sessions 1 Manual Loads 0 Difficulty Rogue Special Mode None Game No. 225 Rogue 225 Adventurer 0 Explorer 0 Win Type - Total 0 Types 0/0/0/0/0/0/0/0/0/0 Lore% 14 Gallery% 39 Achievement% 28 Wizard Run 0 Options --------- Layout 1 ASCII 0 Keyboard 1 Movement Vi Keybinds 0 Fullscreen 2 Font 24/Smallcaps Map View 50x35 Zoom Use 0% Tactical HUD 1 Map Filters NONE Filters NONE Steam 1 RUN: 4f700325-e3d0-42d7-bc82-3133e7d6a32c